[Event "*** Titled Tuesday Blitz"]
[Site "Chess.com"]
[Date "2019.02.05"]
[Round "4"]
[White "Incognito_Knight"]
[Black "Sebastian"]
[Result "0-1"]
[WhiteElo "2621"]
[BlackElo "2879"]
[TimeControl "180+2"]
[EndTime "13:52:00 PST"]
[Termination "Sebastian won by resignation"]

1. e4 {[%clk 0:03:01.8]} 1... c5 {[%clk 0:03:01.1]} 2. Nf3 {[%clk 0:03:02.3]}
2... d6 {[%clk 0:03:02.4]} 3. d4 {[%clk 0:03:03.1]} 3... cxd4 {[%clk 0:03:03.7]}
4. Nxd4 {[%clk 0:03:05]} 4... Nf6 {[%clk 0:03:05.2]} 5. f3 {[%clk 0:03:06.3]}
5... e5 {[%clk 0:03:03.1]} 6. Nb3 {[%clk 0:03:07.3]} 6... d5 {[%clk 0:03:04.5]}
7. Bg5 {[%clk 0:03:07.7]} 7... d4 {[%clk 0:03:05.3]} 8. c3 {[%clk 0:03:09]} 8...
Nc6 {[%clk 0:03:05.6]} 9. Bb5 {[%clk 0:03:10.1]} 9... Qb6 {[%clk 0:02:56.2]} 10.
Bxc6+ {[%clk 0:03:11]} 10... bxc6 {[%clk 0:02:56.6]} 11. cxd4 {[%clk 0:03:12.5]}
11... Bb4+ {[%clk 0:02:53.7]} 12. Bd2 {[%clk 0:03:13.3]} 12... exd4 {[%clk
0:02:24.2]} 13. Bxb4 {[%clk 0:03:13.4]} 13... Qxb4+ {[%clk 0:02:25.8]} 14. Qd2
{[%clk 0:03:14.9]} 14... Rb8 {[%clk 0:02:27.3]} 15. Qxb4 {[%clk 0:03:06.2]}
15... Rxb4 {[%clk 0:02:27.5]} 16. N1d2 {[%clk 0:03:07.4]} 16... Be6 {[%clk
0:02:27]} 17. Rc1 {[%clk 0:03:07.7]} 17... Nd7 {[%clk 0:02:00.4]} 18. f4 {[%clk
0:02:45.6]} 18... c5 {[%clk 0:01:33.6]} 19. Nxc5 {[%clk 0:01:34.7]} 19... Nxc5
{[%clk 0:01:33.7]} 20. Rxc5 {[%clk 0:01:36.6]} 20... Rxb2 {[%clk 0:01:34.2]} 21.
f5 {[%clk 0:01:37.5]} 21... Bd7 {[%clk 0:01:33.8]} 22. Re5+ {[%clk 0:01:20.6]}
22... Kd8 {[%clk 0:01:29.3]} 23. Rd5 {[%clk 0:01:21.5]} 23... Ke7 {[%clk
0:01:12]} 24. Rxd4 {[%clk 0:01:05.2]} 24... Rc8 {[%clk 0:01:13.3]} 25. Ke2
{[%clk 0:01:01.2]} 25... Rcc2 {[%clk 0:01:11.5]} 26. Ke3 {[%clk 0:00:52.3]}
26... g5 {[%clk 0:00:56.4]} 27. h4 {[%clk 0:00:46.9]} 27... h6 {[%clk 0:00:50]}
28. hxg5 {[%clk 0:00:37.7]} 28... hxg5 {[%clk 0:00:51.9]} 29. Rd1 {[%clk
0:00:17.6]} 29... Bb5 {[%clk 0:00:44.4]} 30. e5 {[%clk 0:00:15.7]} 30... Rc3+
{[%clk 0:00:30.4]} 31. Kf2 {[%clk 0:00:16.7]} 31... Rd3 {[%clk 0:00:32]} 32.
Rxd3 {[%clk 0:00:11.9]} 32... Bxd3 {[%clk 0:00:33.9]} 33. g4 {[%clk 0:00:11.8]}
33... Rxa2 {[%clk 0:00:23.9]} 34. Ke3 {[%clk 0:00:12.9]} 34... Ra3 {[%clk
0:00:24.8]} 35. Kd4 {[%clk 0:00:09.8]} 35... Be2 {[%clk 0:00:26.2]} 36. Nc4
{[%clk 0:00:07.3]} 36... Ra4 {[%clk 0:00:20.3]} 37. Rc1 {[%clk 0:00:08.1]} 37...
Bxg4 {[%clk 0:00:21.9]} 38. f6+ {[%clk 0:00:06.3]} 38... Ke6 {[%clk 0:00:23.3]}
39. Kc5 {[%clk 0:00:07.2]} 39... Be2 {[%clk 0:00:23.2]} 40. Nd6 {[%clk
0:00:06.4]} 40... Kxe5 {[%clk 0:00:15.6]} 41. Nxf7+ {[%clk 0:00:07.2]} 41...
Kxf6 {[%clk 0:00:17]} 42. Nd6 {[%clk 0:00:08.4]} 42... g4 {[%clk 0:00:17.6]} 43.
Re1 {[%clk 0:00:07.5]} 43... Bf3 {[%clk 0:00:16.4]} 44. Nb5 {[%clk 0:00:07.3]}
44... Kg5 {[%clk 0:00:16]} 45. Nd4 {[%clk 0:00:08.3]} 45... Ra5+ {[%clk
0:00:14.3]} 46. Kc4 {[%clk 0:00:09.3]} 46... Kf4 {[%clk 0:00:14]} 47. Kd3 {[%clk
0:00:10.2]} 47... Rd5 {[%clk 0:00:13.9]} 48. Kc3 {[%clk 0:00:11.1]} 48... Rd6
{[%clk 0:00:13.8]} 49. Re8 {[%clk 0:00:12.1]} 49... a6 {[%clk 0:00:13.6]} 50.
Rf8+ {[%clk 0:00:13.5]} 50... Ke4 {[%clk 0:00:13.8]} 51. Re8+ {[%clk 0:00:14.2]}
51... Kd5 {[%clk 0:00:11.4]} 52. Rf8 {[%clk 0:00:14.8]} 52... Be4 {[%clk
0:00:10.3]} 53. Rg8 {[%clk 0:00:15.4]} 53... Rg6 {[%clk 0:00:11.2]} 54. Rd8+
{[%clk 0:00:15.2]} 54... Ke5 {[%clk 0:00:11.8]} 55. Re8+ {[%clk 0:00:16.2]}
55... Kf4 {[%clk 0:00:12.1]} 56. Rf8+ {[%clk 0:00:17.1]} 56... Ke3 {[%clk
0:00:11.8]} 57. Re8 {[%clk 0:00:15.1]} 57... g3 {[%clk 0:00:12.1]} 58. Nf5+
{[%clk 0:00:13]} 58... Kf4 {[%clk 0:00:13.3]} 59. Nh4 {[%clk 0:00:12.9]} 59...
Rh6 {[%clk 0:00:09.6]} 60. Rf8+ {[%clk 0:00:11.8]} 60... Kg4 {[%clk 0:00:10.7]}
0-1

[Event "*** Titled Tuesday Blitz"]
[Site "Chess.com"]
[Date "2019.02.05"]
[Round "4"]
[White "saikrishnaReturns"]
[Black "StoreySniper"]
[Result "1-0"]
[WhiteElo "2625"]
[BlackElo "2343"]
[TimeControl "180+2"]
[EndTime "13:52:13 PST"]
[Termination "saikrishnaReturns won by resignation"]

1. e4 {[%clk 0:03:01.9]} 1... g6 {[%clk 0:03:00.6]} 2. d4 {[%clk 0:03:02.2]}
2... Bg7 {[%clk 0:03:02.5]} 3. Nc3 {[%clk 0:03:02.4]} 3... c5 {[%clk 0:03:03.7]}
4. Nf3 {[%clk 0:03:02.5]} 4... Qa5 {[%clk 0:03:03.8]} 5. dxc5 {[%clk 0:02:35.2]}
5... Bxc3+ {[%clk 0:03:01.6]} 6. bxc3 {[%clk 0:02:37.1]} 6... Qxc3+ {[%clk
0:03:02.6]} 7. Bd2 {[%clk 0:02:38.2]} 7... Qxc5 {[%clk 0:03:03.9]} 8. Rb1 {[%clk
0:02:30.2]} 8... d6 {[%clk 0:03:04.2]} 9. Bd3 {[%clk 0:02:24]} 9... Nd7 {[%clk
0:03:04.9]} 10. O-O {[%clk 0:02:23.8]} 10... Ngf6 {[%clk 0:03:05.4]} 11. Bh6
{[%clk 0:02:01.4]} 11... Ng4 {[%clk 0:03:05.7]} 12. Bg7 {[%clk 0:02:00.2]} 12...
Rg8 {[%clk 0:03:06.3]} 13. Bd4 {[%clk 0:01:58.8]} 13... Qh5 {[%clk 0:03:05.2]}
14. Rb5 {[%clk 0:01:56.2]} 14... e5 {[%clk 0:02:48.8]} 15. h3 {[%clk 0:01:45.3]}
15... Ngf6 {[%clk 0:02:27.3]} 16. Be2 {[%clk 0:01:40.5]} 16... Qh6 {[%clk
0:02:16]} 17. Be3 {[%clk 0:01:40.2]} 17... Qf8 {[%clk 0:02:17]} 18. Qd3 {[%clk
0:01:09.5]} 18... b6 {[%clk 0:02:14.8]} 19. Nd2 {[%clk 0:00:59.6]} 19... Ba6
{[%clk 0:02:10.6]} 20. Nc4 {[%clk 0:01:00.5]} 20... Bxb5 {[%clk 0:02:08.1]} 21.
Nxd6+ {[%clk 0:01:01.1]} 21... Qxd6 {[%clk 0:02:09.7]} 22. Qxd6 {[%clk
0:01:01.5]} 22... Bxe2 {[%clk 0:02:11.2]} 23. Re1 {[%clk 0:00:50]} 23... Bc4
{[%clk 0:02:08.9]} 24. Bg5 {[%clk 0:00:48]} 24... Be6 {[%clk 0:02:10]} 25. f4
{[%clk 0:00:45.9]} 25... h6 {[%clk 0:01:43.8]} 26. Bxf6 {[%clk 0:00:38.9]} 26...
Nxf6 {[%clk 0:01:45]} 27. f5 {[%clk 0:00:39.5]} 27... Nxe4 {[%clk 0:01:30.3]}
28. Rxe4 {[%clk 0:00:35.5]} 28... gxf5 {[%clk 0:01:29.6]} 29. Qc6+ {[%clk
0:00:23.6]} 29... Ke7 {[%clk 0:01:30.2]} 30. Qc7+ {[%clk 0:00:24.1]} 30... Kf8
{[%clk 0:01:29.7]} 31. Rxe5 {[%clk 0:00:22.2]} 31... Rg6 {[%clk 0:01:29.6]} 32.
Qd6+ {[%clk 0:00:19.7]} 32... Kg7 {[%clk 0:01:30.3]} 33. Qd4 {[%clk 0:00:20.3]}
33... Kh7 {[%clk 0:01:29]} 34. Qa4 {[%clk 0:00:21.2]} 34... Rag8 {[%clk
0:01:29.8]} 35. Re2 {[%clk 0:00:21.1]} 35... Bd5 {[%clk 0:01:30.6]} 36. Qxa7
{[%clk 0:00:21.1]} 36... Bxg2 {[%clk 0:01:29.3]} 37. Re7 {[%clk 0:00:18.4]}
37... R8g7 {[%clk 0:01:27]} 38. Kf2 {[%clk 0:00:18.2]} 38... Bd5 {[%clk
0:01:27.3]} 39. h4 {[%clk 0:00:18.3]} 39... f4 {[%clk 0:01:27.7]} 40. Rd7 {[%clk
0:00:14.8]} 40... Rg2+ {[%clk 0:01:27.9]} 41. Ke1 {[%clk 0:00:15.9]} 41... Rxc2
{[%clk 0:01:24.9]} 42. Kd1 {[%clk 0:00:15.4]} 42... Rc5 {[%clk 0:01:03.7]} 43.
Qxb6 {[%clk 0:00:12.5]} 43... Rg1+ {[%clk 0:00:56.7]} 44. Kd2 {[%clk 0:00:12]}
44... Rg2+ {[%clk 0:00:57.9]} 45. Kd3 {[%clk 0:00:12.6]} 45... Rc6 {[%clk
0:00:35.6]} 46. Qb1 {[%clk 0:00:10.2]} 46... Be6 {[%clk 0:00:29.5]} 47. Kd4+
{[%clk 0:00:10.4]} 47... Kg7 {[%clk 0:00:29.8]} 48. Rb7 {[%clk 0:00:09.4]} 48...
Rd2+ {[%clk 0:00:30.5]} 49. Ke5 {[%clk 0:00:10.4]} 49... Re2+ {[%clk 0:00:22.3]}
50. Kxf4 {[%clk 0:00:11]} 50... Rc4+ {[%clk 0:00:22.4]} 51. Kf3 {[%clk
0:00:11.4]} 51... Bg4+ {[%clk 0:00:23.3]} 52. Kg3 {[%clk 0:00:11.6]} 52... h5
{[%clk 0:00:15.1]} 53. Qa1+ {[%clk 0:00:11.2]} 53... Kg8 {[%clk 0:00:07.4]} 54.
Rb8+ {[%clk 0:00:11.8]} 54... Bc8 {[%clk 0:00:08.7]} 55. Qd1 {[%clk 0:00:11.1]}
55... Re3+ {[%clk 0:00:05]} 56. Kf2 {[%clk 0:00:09.4]} 56... Re8 {[%clk
0:00:05.7]} 57. Qg1+ {[%clk 0:00:09.2]} 57... Rg4 {[%clk 0:00:06.4]} 58. Qc1
{[%clk 0:00:09.9]} 58... Kh7 {[%clk 0:00:05.7]} 59. Rxc8 {[%clk 0:00:10.4]}
59... Re6 {[%clk 0:00:05.2]} 60. Qc2+ {[%clk 0:00:10.9]} 60... Kg7 {[%clk
0:00:05.9]} 61. Rc6 {[%clk 0:00:10.5]} 61... Rxc6 {[%clk 0:00:02.6]} 62. Qxc6
{[%clk 0:00:12.4]} 62... Rxh4 {[%clk 0:00:04]} 63. a4 {[%clk 0:00:12.2]} 63...
Rg4 {[%clk 0:00:02.2]} 64. a5 {[%clk 0:00:12.3]} 64... h4 {[%clk 0:00:03.6]} 65.
a6 {[%clk 0:00:13.4]} 65... h3 {[%clk 0:00:05]} 66. a7 {[%clk 0:00:14.5]} 66...
Ra4 {[%clk 0:00:06.2]} 67. Qxa4 {[%clk 0:00:14.8]} 1-0

[Event "*** Titled Tuesday Blitz"]
[Site "Chess.com"]
[Date "2019.02.05"]
[Round "4"]
[White "Rodalquilar"]
[Black "xLuring1"]
[Result "1/2-1/2"]
[WhiteElo "2541"]
[BlackElo "2326"]
[TimeControl "180+2"]
[EndTime "13:52:25 PST"]
[Termination "Game drawn by repetition"]

1. e4 {[%clk 0:03:01.6]} 1... c5 {[%clk 0:03:00.9]} 2. Nf3 {[%clk 0:03:01.4]}
2... Nc6 {[%clk 0:03:02.1]} 3. Bb5 {[%clk 0:03:01.5]} 3... g6 {[%clk 0:03:02.7]}
4. Bxc6 {[%clk 0:03:02.3]} 4... bxc6 {[%clk 0:03:04.6]} 5. O-O {[%clk
0:02:59.3]} 5... Bg7 {[%clk 0:03:05.7]} 6. c3 {[%clk 0:02:59.8]} 6... Nh6 {[%clk
0:03:03.2]} 7. d4 {[%clk 0:02:57.7]} 7... cxd4 {[%clk 0:03:03.5]} 8. cxd4 {[%clk
0:02:59.6]} 8... d5 {[%clk 0:03:04.9]} 9. e5 {[%clk 0:02:56.1]} 9... O-O {[%clk
0:03:05.6]} 10. h3 {[%clk 0:02:55.8]} 10... f6 {[%clk 0:03:06.5]} 11. Re1 {[%clk
0:02:54.5]} 11... Nf7 {[%clk 0:03:06.7]} 12. Bf4 {[%clk 0:02:50.5]} 12... Qb6
{[%clk 0:02:39]} 13. Nc3 {[%clk 0:02:46.2]} 13... Nd8 {[%clk 0:02:30.9]} 14. Na4
{[%clk 0:02:43.1]} 14... Qb4 {[%clk 0:02:25.6]} 15. a3 {[%clk 0:02:39.3]} 15...
Qb5 {[%clk 0:02:23.5]} 16. Nc5 {[%clk 0:02:18.5]} 16... fxe5 {[%clk 0:01:56.9]}
17. Bxe5 {[%clk 0:02:14.5]} 17... Bxe5 {[%clk 0:01:56.3]} 18. Rxe5 {[%clk
0:01:42.1]} 18... e6 {[%clk 0:01:56.1]} 19. Qe2 {[%clk 0:01:21.3]} 19... Nf7
{[%clk 0:01:50.4]} 20. Re3 {[%clk 0:01:11.2]} 20... Nd6 {[%clk 0:01:33.5]} 21.
Ng5 {[%clk 0:00:40.3]} 21... Nf5 {[%clk 0:01:24.1]} 22. Qxb5 {[%clk 0:00:23.8]}
22... cxb5 {[%clk 0:01:26]} 23. Rd3 {[%clk 0:00:25.1]} 23... Re8 {[%clk
0:01:16.7]} 24. Re1 {[%clk 0:00:22.9]} 24... h6 {[%clk 0:01:15]} 25. Ngxe6
{[%clk 0:00:22.3]} 25... Bxe6 {[%clk 0:01:14.3]} 26. Rxe6 {[%clk 0:00:20.4]}
26... Rxe6 {[%clk 0:01:13.5]} 27. Nxe6 {[%clk 0:00:22.3]} 27... Re8 {[%clk
0:01:13.7]} 28. Nf4 {[%clk 0:00:22.9]} 28... Re4 {[%clk 0:01:01.8]} 29. Nxg6
{[%clk 0:00:16.3]} 29... Nxd4 {[%clk 0:00:56.8]} 30. Ne7+ {[%clk 0:00:16.1]}
30... Rxe7 {[%clk 0:00:50.9]} 31. Rxd4 {[%clk 0:00:17.3]} 31... Re1+ {[%clk
0:00:52.5]} 32. Kh2 {[%clk 0:00:18.5]} 32... Re2 {[%clk 0:00:54.4]} 33. Rxd5
{[%clk 0:00:18.7]} 33... Rxb2 {[%clk 0:00:54.7]} 34. f4 {[%clk 0:00:19.7]} 34...
a5 {[%clk 0:00:54.2]} 35. a4 {[%clk 0:00:18.9]} 35... Kf7 {[%clk 0:00:24.9]} 36.
axb5 {[%clk 0:00:14.8]} 36... a4 {[%clk 0:00:25.9]} 37. Rd6 {[%clk 0:00:15.8]}
37... Rxb5 {[%clk 0:00:24.7]} 38. Rxh6 {[%clk 0:00:07.5]} 38... Ra5 {[%clk
0:00:25.5]} 39. Rc6 {[%clk 0:00:08.3]} 39... a3 {[%clk 0:00:26.8]} 40. Rc1
{[%clk 0:00:07.7]} 40... a2 {[%clk 0:00:28.7]} 41. Ra1 {[%clk 0:00:09.2]} 41...
Ra3 {[%clk 0:00:29.4]} 42. Kg1 {[%clk 0:00:05.5]} 42... Kf6 {[%clk 0:00:30.4]}
43. g4 {[%clk 0:00:05.1]} 43... Rxh3 {[%clk 0:00:29.2]} 44. Rxa2 {[%clk
0:00:04.4]} 44... Rg3+ {[%clk 0:00:29.6]} 45. Rg2 {[%clk 0:00:05.6]} 45... Rf3
{[%clk 0:00:31]} 46. f5 {[%clk 0:00:03.2]} 46... Kg5 {[%clk 0:00:32.1]} 47. Kh2
{[%clk 0:00:03.1]} 47... Rf1 {[%clk 0:00:30.8]} 48. Kg3 {[%clk 0:00:04]} 48...
Ra1 {[%clk 0:00:29]} 49. Rf2 {[%clk 0:00:03.8]} 49... Rg1+ {[%clk 0:00:29.7]}
50. Kh3 {[%clk 0:00:05.3]} 50... Rxg4 {[%clk 0:00:25.9]} 51. f6 {[%clk
0:00:03.6]} 51... Rh4+ {[%clk 0:00:27.1]} 52. Kg3 {[%clk 0:00:05.1]} 52... Rh8
{[%clk 0:00:29]} 53. f7 {[%clk 0:00:04.6]} 53... Rf8 {[%clk 0:00:29.1]} 54. Kh3
{[%clk 0:00:03.7]} 54... Kg6 {[%clk 0:00:30.1]} 55. Kg4 {[%clk 0:00:05.6]} 55...
Rxf7 {[%clk 0:00:31.2]} 56. Rb2 {[%clk 0:00:07.5]} 56... Rf6 {[%clk 0:00:32.4]}
57. Rb5 {[%clk 0:00:07.9]} 57... Ra6 {[%clk 0:00:33.4]} 58. Rg5+ {[%clk
0:00:08.4]} 58... Kf6 {[%clk 0:00:33.4]} 59. Rb5 {[%clk 0:00:10.1]} 59... Kg6
{[%clk 0:00:32.5]} 60. Rg5+ {[%clk 0:00:09]} 60... Kf6 {[%clk 0:00:33.2]} 61.
Rb5 {[%clk 0:00:10.9]} 61... Kg6 {[%clk 0:00:34.2]} 1/2-1/2

[Event "*** Titled Tuesday Blitz"]
[Site "Chess.com"]
[Date "2019.02.05"]
[Round "4"]
[White "Tolya2"]
[Black "snowlord"]
[Result "1/2-1/2"]
[WhiteElo "2523"]
[BlackElo "2696"]
[TimeControl "180+2"]
[EndTime "13:52:37 PST"]
[Termination "Game drawn - insufficient material"]

1. Nf3 {[%clk 0:03:01.9]} 1... b6 {[%clk 0:03:00.3]} 2. g3 {[%clk 0:03:01.9]}
2... c5 {[%clk 0:03:01.2]} 3. Bg2 {[%clk 0:03:02]} 3... Bb7 {[%clk 0:03:02.7]}
4. c4 {[%clk 0:03:02.6]} 4... g6 {[%clk 0:03:04]} 5. Nc3 {[%clk 0:03:01]} 5...
Bg7 {[%clk 0:03:05.3]} 6. O-O {[%clk 0:03:01.9]} 6... Nc6 {[%clk 0:03:05.8]} 7.
e3 {[%clk 0:03:02.5]} 7... Nf6 {[%clk 0:03:06.6]} 8. d4 {[%clk 0:03:02.6]} 8...
cxd4 {[%clk 0:03:08.2]} 9. Nxd4 {[%clk 0:03:01.6]} 9... O-O {[%clk 0:03:08.5]}
10. b3 {[%clk 0:03:01.3]} 10... d5 {[%clk 0:03:07.3]} 11. cxd5 {[%clk
0:02:58.9]} 11... Nxd4 {[%clk 0:03:07.2]} 12. exd4 {[%clk 0:02:54.4]} 12... Nxd5
{[%clk 0:03:08.3]} 13. Nxd5 {[%clk 0:02:49.6]} 13... Bxd5 {[%clk 0:03:08.2]} 14.
Be3 {[%clk 0:02:50.1]} 14... Rc8 {[%clk 0:03:02.2]} 15. Qd2 {[%clk 0:02:42.4]}
15... Bxg2 {[%clk 0:03:02.4]} 16. Kxg2 {[%clk 0:02:43]} 16... Qd5+ {[%clk
0:03:04.3]} 17. Kg1 {[%clk 0:02:42.8]} 17... Rfd8 {[%clk 0:03:05.2]} 18. Rac1
{[%clk 0:02:43.4]} 18... Rxc1 {[%clk 0:03:05]} 19. Rxc1 {[%clk 0:02:43.9]} 19...
Bxd4 {[%clk 0:03:06.4]} 20. Bxd4 {[%clk 0:02:44]} 20... Qxd4 {[%clk 0:03:08.1]}
21. Qxd4 {[%clk 0:02:44.8]} 21... Rxd4 {[%clk 0:03:09.8]} 22. Rc7 {[%clk
0:02:45.7]} 22... a6 {[%clk 0:02:51.4]} 23. Rxe7 {[%clk 0:02:44.4]} 23... Rd2
{[%clk 0:02:52]} 24. a4 {[%clk 0:02:33.5]} 24... Rd3 {[%clk 0:02:39.7]} 25. Ra7
{[%clk 0:02:20.4]} 25... a5 {[%clk 0:02:37.6]} 26. b4 {[%clk 0:02:21.2]} 26...
axb4 {[%clk 0:02:36.8]} 27. Ra6 {[%clk 0:02:21.3]} 27... Rd6 {[%clk 0:02:37.6]}
28. a5 {[%clk 0:02:22.1]} 28... Rd1+ {[%clk 0:02:37.9]} 29. Kg2 {[%clk
0:02:23.3]} 29... bxa5 {[%clk 0:02:37.9]} 30. Rxa5 {[%clk 0:02:24.4]} 30... b3
{[%clk 0:02:38.7]} 31. Rb5 {[%clk 0:02:25.3]} 31... Rb1 {[%clk 0:02:38.6]} 32.
h4 {[%clk 0:02:24.9]} 32... h5 {[%clk 0:02:37]} 33. Kf3 {[%clk 0:02:22.8]} 33...
Kg7 {[%clk 0:02:34.7]} 34. Rb6 {[%clk 0:02:23.2]} 34... Kf8 {[%clk 0:02:29.5]}
35. Rb7 {[%clk 0:02:23.2]} 35... Rb2 {[%clk 0:02:25.9]} 36. Ke3 {[%clk
0:02:20.6]} 36... Kg7 {[%clk 0:02:25.7]} 37. Rb6 {[%clk 0:02:20.3]} 37... Rb1
{[%clk 0:02:15.1]} 38. Kf4 {[%clk 0:02:16.5]} 38... f6 {[%clk 0:02:08.1]} 39.
Rb7+ {[%clk 0:02:15.7]} 39... Kh6 {[%clk 0:02:07.9]} 40. Rb6 {[%clk 0:02:14.3]}
40... b2 {[%clk 0:02:04.7]} 41. Rb7 {[%clk 0:02:07.5]} 41... g5+ {[%clk
0:01:14.8]} 42. Kf5 {[%clk 0:02:02.3]} 42... gxh4 {[%clk 0:01:15.1]} 43. gxh4
{[%clk 0:02:02.7]} 43... Rh1 {[%clk 0:01:16]} 44. Rxb2 {[%clk 0:01:59]} 44...
Rxh4 {[%clk 0:01:16.5]} 45. Kxf6 {[%clk 0:01:59.8]} 45... Rf4+ {[%clk
0:01:08.7]} 46. Ke5 {[%clk 0:02:00.2]} 46... Kg5 {[%clk 0:01:09.9]} 47. Rd2
{[%clk 0:01:43.4]} 47... h4 {[%clk 0:01:05.4]} 48. Rd8 {[%clk 0:01:43.5]} 48...
Rxf2 {[%clk 0:00:50.9]} 49. Rg8+ {[%clk 0:01:43.8]} 49... Kh5 {[%clk 0:00:51.7]}
50. Ke4 {[%clk 0:01:43.4]} 50... h3 {[%clk 0:00:51.8]} 51. Ke3 {[%clk
0:01:44.1]} 51... Rf7 {[%clk 0:00:51.9]} 52. Rh8+ {[%clk 0:01:41.1]} 52... Kg4
{[%clk 0:00:52.1]} 53. Rg8+ {[%clk 0:01:41.9]} 53... Kh4 {[%clk 0:00:53.3]} 54.
Rh8+ {[%clk 0:01:41.3]} 54... Kg4 {[%clk 0:00:54.5]} 55. Rg8+ {[%clk 0:01:42.2]}
55... Kh4 {[%clk 0:00:54.7]} 56. Rh8+ {[%clk 0:01:42.9]} 56... Kg3 {[%clk
0:00:55.9]} 57. Rg8+ {[%clk 0:01:43.6]} 57... Kh2 {[%clk 0:00:56.9]} 58. Ke2
{[%clk 0:01:42.9]} 58... Rf6 {[%clk 0:00:55.6]} 59. Rg7 {[%clk 0:01:43]} 59...
Rf5 {[%clk 0:00:55.2]} 60. Rg8 {[%clk 0:01:43.5]} 60... Rf4 {[%clk 0:00:56.2]}
61. Rg7 {[%clk 0:01:43.4]} 61... Rf8 {[%clk 0:00:57]} 62. Rg6 {[%clk 0:01:43.4]}
62... Rf4 {[%clk 0:00:57.8]} 63. Rg7 {[%clk 0:01:43.7]} 63... Kh1 {[%clk
0:00:59]} 64. Ke3 {[%clk 0:01:43.5]} 64... Rf1 {[%clk 0:00:58.9]} 65. Ke2 {[%clk
0:01:44]} 65... Rg1 {[%clk 0:00:59.3]} 66. Rh7 {[%clk 0:01:44.1]} 66... Kg2
{[%clk 0:00:54.8]} 67. Rg7+ {[%clk 0:01:43.5]} 67... Kh2 {[%clk 0:00:56.4]} 68.
Rh7 {[%clk 0:01:44.3]} 68... Rg3 {[%clk 0:00:45.1]} 69. Kf2 {[%clk 0:01:44]}
69... Ra3 {[%clk 0:00:45.8]} 70. Rh8 {[%clk 0:01:42.7]} 70... Ra7 {[%clk
0:00:38.4]} 71. Rh6 {[%clk 0:01:41.3]} 71... Rf7+ {[%clk 0:00:33.2]} 72. Ke2
{[%clk 0:01:41.2]} 72... Kg2 {[%clk 0:00:33.7]} 73. Rg6+ {[%clk 0:01:42.1]}
73... Kh1 {[%clk 0:00:34.7]} 74. Rh6 {[%clk 0:01:42.7]} 74... Kh2 {[%clk
0:00:36.1]} 75. Rg6 {[%clk 0:01:42.8]} 75... Rf8 {[%clk 0:00:36.3]} 76. Rg7
{[%clk 0:01:43]} 76... Ra8 {[%clk 0:00:36.9]} 77. Kf2 {[%clk 0:01:42.6]} 77...
Ra1 {[%clk 0:00:37.7]} 78. Rg8 {[%clk 0:01:40.6]} 78... Ra2+ {[%clk 0:00:38.7]}
79. Kf1 {[%clk 0:01:41.6]} 79... Rg2 {[%clk 0:00:36.9]} 80. Rh8 {[%clk
0:01:41.8]} 80... Kg3 {[%clk 0:00:36.7]} 81. Rg8+ {[%clk 0:01:42.4]} 81... Kh2
{[%clk 0:00:37.4]} 82. Rh8 {[%clk 0:01:42.8]} 82... Rd2 {[%clk 0:00:37.7]} 83.
Rh7 {[%clk 0:01:41.9]} 83... Kg3 {[%clk 0:00:36.4]} 84. Rg7+ {[%clk 0:01:42.6]}
84... Kf3 {[%clk 0:00:37.8]} 85. Rf7+ {[%clk 0:01:33.8]} 85... Kg4 {[%clk
0:00:37.9]} 86. Rg7+ {[%clk 0:01:34]} 86... Kh4 {[%clk 0:00:36.4]} 87. Kg1
{[%clk 0:01:34.8]} 87... Rc2 {[%clk 0:00:34.9]} 88. Kh1 {[%clk 0:01:34.3]} 88...
Rc1+ {[%clk 0:00:35.2]} 89. Kh2 {[%clk 0:01:34.2]} 89... Rc2+ {[%clk 0:00:36]}
90. Kh1 {[%clk 0:01:35.1]} 90... Rf2 {[%clk 0:00:32.1]} 91. Rg8 {[%clk
0:01:34.6]} 91... Rf1+ {[%clk 0:00:32]} 92. Kh2 {[%clk 0:01:34.7]} 92... Rf2+
{[%clk 0:00:33.3]} 93. Kh1 {[%clk 0:01:35.7]} 93... h2 {[%clk 0:00:32.5]} 94.
Rg2 {[%clk 0:01:33.7]} 94... Rxg2 {[%clk 0:00:31.1]} 95. Kxg2 {[%clk 0:01:34.2]}
95... h1=Q+ {[%clk 0:00:32.1]} 96. Kxh1 {[%clk 0:01:35]} 1/2-1/2